fUSD/lending_fUSD_20240730
["ID","MTS","AMOUNT","RATE_DAILY","PERIOD"]
[333677521,1722345040600,-500.0,0.00010999,2]
[333677522,1722345040610,-500.0,0.00010999,2]
[333677525,1722345040621,-500.0,0.00010999,2]
[333677527,1722345040632,-500.0,0.00010999,2]
[333677528,1722345040641,-512.38640263,0.00010999,2]
[333677530,1722345040650,-500.0,0.00010999,2]
[333677533,1722345040663,-500.0,0.00010999,2]
[333677534,1722345040672,-500.0,0.00010999,2]
[333677536,1722345040681,-500.0,0.00010999,2]
[333677538,1722345040691,-500.0,0.00010999,2]
[333677540,1722345040700,-500.0,0.00010999,2]
[333677542,1722345040709,-500.0,0.00010999,2]
[333677544,1722345040718,-500.0,0.00010999,2]
[333677546,1722345040727,-500.0,0.00010999,2]
[333677548,1722345040737,-500.0,0.00010999,2]
[333677550,1722345040746,-500.0,0.00010999,2]
[333677552,1722345040755,-500.0,0.00010999,2]
[333677554,1722345040764,-500.0,0.00010999,2]
[333677556,1722345040773,-500.0,0.00010999,2]
[333677558,1722345040783,-500.0,0.00010999,2]
[333677560,1722345040792,-500.0,0.00010999,2]
[333677562,1722345040801,-304.40771491,0.00010999,2]
[333677563,1722345040810,-510.13863456,0.00010999,2]
[333677565,1722345040819,-500.0,0.00010999,2]
[333677567,1722345040829,-507.0713571,0.00010999,2]
[333677569,1722345040838,-500.0,0.00010999,2]
[333677571,1722345040847,-500.0,0.00010999,2]
[333677573,1722345040856,-500.0,0.00010999,2]
[333677575,1722345040865,-502.03540378,0.00010999,2]
[333677577,1722345040874,-386.45327412,0.00010999,2]
[333677579,1722345040886,-500.0,0.00010999,2]
[333677581,1722345040895,-500.0,0.00010999,2]
[333677583,1722345040904,-500.0,0.00010999,2]
[333677585,1722345040913,-500.0,0.00010999,2]
[333677587,1722345040922,-500.0,0.00010999,2]
[333677589,1722345040932,-500.0,0.00010999,2]
[333677590,1722345040941,-500.0,0.00010999,2]
[333677592,1722345040951,-500.0,0.00010999,2]
[333677594,1722345040960,-500.0,0.00010999,2]
[333677596,1722345040969,-333.59645242,0.00010999,2]
[333677598,1722345040979,-500.0,0.00010999,2]
[333677600,1722345040989,-500.0,0.00010999,2]
[333677602,1722345041001,-500.0,0.00010999,2]
[333677604,1722345041010,-457.0,0.00010999,2]
[333677606,1722345041019,-500.0,0.00010999,2]
[333677608,1722345041028,-504.97856787,0.00010999,2]
[333677610,1722345041039,-500.0,0.00010999,2]
[333677612,1722345041048,-500.0,0.00010999,2]
[333677614,1722345041057,-500.0,0.00010999,2]
[333677616,1722345041066,-500.0,0.00010999,2]
[333677617,1722345041076,-285.24034575,0.00010999,2]
[333677619,1722345041085,-500.0,0.00010999,2]
[333677621,1722345041095,-510.37629984,0.00010999,2]
[333677623,1722345041104,-166197.54350251,0.00011,2]
[333677629,1722345041154,-1015.75187423,0.00011,2]
[333677637,1722345041220,-4059.44594399,0.00011,2]
[333677639,1722345041233,-13391.37799999,0.00011,2]
[333677777,1722345042687,-283.71,0.00011,2]
[333677783,1722345042736,-427.149998,0.000109,2]
[333677785,1722345042747,-221.79187611,0.000109,2]
[333677787,1722345042757,-1281.02391663,0.00011,2]
[333677790,1722345042777,-547.46957672,0.00011,2]
[333677793,1722345042788,-623.25,0.00011,2]
[333677795,1722345042798,-7428.60756,0.00011,2]
[333677800,1722345042835,-336.84091214,0.00011,2]
[333677802,1722345042846,-316.14298625,0.00011,2]
[333677812,1722345042948,-238922.71667357,0.00011,2]
[333677815,1722345042959,-1201.0,0.00011,2]
[333677816,1722345042968,-5825.0,0.00011,2]
[333677819,1722345042978,-457.619,0.00011,2]
[333677820,1722345042988,-202.794,0.00011,2]
[333677822,1722345043000,-12776.005,0.00011,2]
[333677824,1722345043009,-1310.956,0.00011,2]
[333677826,1722345043019,-94482.16154271,0.00011,2]
[333677829,1722345043033,-1220.00000001,0.00011,2]
[333677831,1722345043044,-1250.8271609,0.00011,2]
[333677833,1722345043056,-5788.8780231,0.00011,2]
[333677835,1722345043068,-44042.92325754,0.00011,2]
[333677840,1722345043107,-286.43478753,0.00011,2]
[333677842,1722345043117,-760.21,0.00011,2]
[333677844,1722345043128,-827.19049739,0.00011,2]
[333677846,1722345043140,-1202.82442801,0.00011,2]
[333677848,1722345043151,-2951.52100116,0.00011,2]
[333677850,1722345043163,-1700.6,0.00011,2]
[333678120,1722345046160,-250.0,0.00010885,2]
[333678123,1722345046170,-114.0900299,0.00011,2]
[333678190,1722345046499,-665.55293385,0.00011,2]
[333678275,1722345046893,-568.57253198,0.00011,2]
[333678456,1722345048262,184351.0,0.00027,120]
[333678822,1722345168711,2000.0,0.00023287,90]
[333678823,1722345169272,2000.0,0.00024109,90]
[333678824,1722345169865,2000.0,0.00024931,90]
[333678825,1722345194336,1000.0,0.00027,120]
[333678826,1722345199482,500.0,0.00027,120]
[333678827,1722345266928,2663.96367269,0.00027,120]
[333678828,1722345377483,1744.37,0.00027,120]
[333678829,1722345524164,329.81828907,0.00027,120]
[333678831,1722345956147,2866.52896504,6.94e-05,2]
[333678833,1722346034555,871.44654427,6.94e-05,2]
[333678834,1722346035384,262.01031941,6.94e-05,2]
[333678835,1722346046135,726.58038063,6.94e-05,2]
[333678836,1722346047803,9262.00526818,6.94e-05,2]
[333678837,1722346061333,207.00138333,6.94e-05,2]
[333678838,1722346074277,485.18575139,6.94e-05,2]
[333678840,1722346082334,155.0,6.94e-05,2]
[333678841,1722346094720,961.54526089,6.94e-05,2]
[333678842,1722346100490,797.68561471,6.94e-05,2]
[333678843,1722346101502,306.96377459,6.94e-05,2]
[333678844,1722346110300,3098.04673756,6.94e-05,2]
[333678845,1722346122786,10000.0,0.00027,120]
[333678875,1722346231972,-180.0,6.939e-05,2]
[333678876,1722346231982,-300.0,6.939e-05,2]
[333678877,1722346231992,-150.0,6.939e-05,2]
[333678878,1722346232002,-300.0,6.939e-05,2]
[333678879,1722346232012,-3852.84240991,6.94e-05,2]
[333678880,1722346232024,-3689.24344746,6.94e-05,2]
[333678881,1722346232036,-2623.158139,6.94e-05,2]
[333678882,1722346232057,-200761.03995343,6.94e-05,2]
[333678883,1722346232066,-283.36570704,6.94e-05,2]
[333678884,1722346232076,-420.0,7.633e-05,2]
[333678885,1722346232085,-584.13,8.219e-05,2]
[333678886,1722346232094,-587.0,8.396e-05,2]
[333678887,1722346232104,-542.32179846,9e-05,2]
[333678888,1722346232114,-823.0,9.236e-05,2]
[333678889,1722346232124,-23170.91,9.752e-05,2]
[333678890,1722346232134,-200.0,9.784e-05,2]
[333678891,1722346232143,-1000.0,9.819e-05,2]
[333678892,1722346232153,-499.99,9.819e-05,2]
[333678893,1722346232162,-300.0,9.9e-05,3]
[333678894,1722346232172,-150.99,9.9e-05,2]
[333678895,1722346232181,-600.0,0.0001,3]
[333678896,1722346232191,-900.0,0.000101,3]
[333678897,1722346232201,-1152.0,0.00010159,2]
[333678898,1722346232210,-1200.0,0.000102,3]
[333678899,1722346232219,-2918.32,0.000103,2]
[333678900,1722346232229,-299.99,0.000103,2]
[333678901,1722346232239,-613.91,0.000103,2]
[333678902,1722346232249,-421.25,0.000103,2]
[333678903,1722346232259,-1500.0,0.000103,3]
[333678904,1722346232269,-300.0,0.000104,3]
[333678905,1722346232279,-584.13,0.00010458,2]
[333678906,1722346232289,-158.93,0.00010463,2]
[333678907,1722346232301,-300.0,0.000105,3]
[333678908,1722346232311,-300.0,0.000106,3]
[333678909,1722346232320,-300.0,0.000107,3]
[333678910,1722346232330,-152.987169,0.00010739,2]
[333678911,1722346232339,-658.4187,0.0001079,2]
[333678912,1722346232349,-519.0,0.000108,3]
[333678914,1722346232359,-25684.2702943,0.0001088,2]
[333678916,1722346232368,-3000.0,0.0001089,2]
[333678918,1722346232377,-11909.8311,0.0001089,2]
[333678920,1722346232388,-28055.714,0.0001089,2]
[333678922,1722346232401,-2239.1797,0.0001089,2]
[333678924,1722346232411,-2328.0836,0.0001089,2]
[333678926,1722346232420,-933.5174,0.0001089,2]
[333678928,1722346232431,-12967.3785,0.00010895,2]
[333678930,1722346232440,-152.48282064,0.00010899,2]
[333678932,1722346232452,-152.48282064,0.00010899,2]
[333678933,1722346232462,-2609.4423,0.000109,2]
[333678935,1722346232472,-44819.2056,0.000109,2]
[333678937,1722346232482,-1966.9382,0.000109,2]
[333678939,1722346232492,-363.17001546,0.000109,2]
[333678941,1722346232502,-363.17001546,0.000109,2]
[333678943,1722346232511,-363.17001546,0.000109,2]
[333678945,1722346232520,-363.17001546,0.000109,2]
[333678947,1722346232529,-363.17001546,0.000109,2]
[333678949,1722346232539,-363.17001546,0.000109,2]
[333678951,1722346232550,-363.17001546,0.000109,2]
[333678953,1722346232560,-363.17001546,0.000109,2]
[333678955,1722346232570,-363.17001546,0.000109,2]
[333678957,1722346232579,-363.17001546,0.000109,2]
[333678959,1722346232588,-363.17001546,0.000109,2]
[333678961,1722346232598,-363.17001546,0.000109,2]
[333678963,1722346232607,-363.17001546,0.000109,2]
[333678965,1722346232617,-363.17001546,0.000109,2]
[333678966,1722346232626,-363.17001546,0.000109,2]
[333678968,1722346232635,-363.17001546,0.000109,2]
[333678970,1722346232645,-363.17001546,0.000109,2]
[333678972,1722346232655,-152.48282064,0.000109,2]
[333678974,1722346232665,-363.17001546,0.000109,2]
[333678976,1722346232674,-363.17001546,0.000109,2]
[333678978,1722346232683,-363.17001546,0.000109,2]
[333678980,1722346232693,-1017.48071706,0.0001093,2]
[333678982,1722346232704,-200.0,0.00010959,2]
[333678984,1722346232714,-250.0,0.00010959,2]
[333678986,1722346232724,-8075.0,0.00010959,2]
[333678988,1722346232735,-150.0,0.00010959,2]
[333678989,1722346232747,-700.0,0.0001097,2]
[333678990,1722346232758,-500.58181761,0.0001097,2]
[333678991,1722346232768,-630.81518052,0.00010989,2]
[333678992,1722346232780,-40228.4316746,0.0001099,7]
[333678993,1722346232998,-3264.79091151,0.0001099,7]
[333678994,1722346233018,-5710.98748693,0.0001099,7]
[333678995,1722346233030,-505.95034743,0.0001099,7]
[333678996,1722346233049,-885349.58167244,0.0001099,7]
[333678997,1722346233063,-45620.49741208,0.0001099,7]
[333678998,1722346233075,-965.41908988,0.0001099,7]
[333678999,1722346233087,-346.48303694,0.0001099,7]
[333679000,1722346233099,-3832.64287863,0.0001099,7]
[333679001,1722346233111,-14198.30525229,0.0001099,7]
[333679002,1722346233129,-2121.37763752,0.0001099,7]
[333679003,1722346233142,-466.63551131,0.0001099,7]
[333679004,1722346233153,-7458.35511987,0.0001099,7]
[333679014,1722346239031,-1178.618413,9.819e-05,2]
[333679015,1722346239042,-358.33485164,9.819e-05,2]
[333679016,1722346239056,-6293.29673536,9.819e-05,2]
[333679017,1722346239066,-1440.91047168,0.0001099,7]
[333679018,1722346239078,-53622.47592908,0.0001099,7]
[333679019,1722346239089,-5556.73676619,0.0001099,7]
[333679020,1722346239102,-187539.03069658,0.0001099,7]
[333679021,1722346239112,-23597.47280625,0.0001099,2]
[333679022,1722346239125,-171.66305493,0.0001099,2]
[333679023,1722346239135,-110.38391482,0.00010998,2]
[333679024,1722346239147,-566.76354058,0.00010998,2]
[333679025,1722346239159,-1215.1461861,0.00010998,2]
[333679026,1722346239169,-5069.2052418,0.00010998,2]
[333679027,1722346239180,-174.3807343,0.00010998,2]
[333679028,1722346239189,-169.57223723,0.00010998,2]
[333679029,1722346239207,-778.63202683,0.00010998,2]
[333679030,1722346239224,-628.66127068,0.00010998,2]
[333679031,1722346239297,-914.0500234,0.00010998,2]
[333679032,1722346239314,-2166.78342138,0.00010998,2]
[333679033,1722346239384,-11911.24209814,0.00010998,2]
[333679035,1722346240333,-11047.60140179,0.00010998,2]
[333679036,1722346240345,-198.28796345,0.00010998,2]
[333679037,1722346240354,-65.89603173,0.00010999,2]
[333679038,1722346240366,-337.94,0.00010999,2]
[333679039,1722346240377,-96.16396827,0.00010999,2]
[333679040,1722346240391,-500.0,0.00010999,2]
[333679041,1722346240401,-501.10038247,0.00010999,2]
[333679042,1722346240410,-500.0,0.00010999,2]
[333679043,1722346240420,-500.30041978,0.00010999,2]
[333679044,1722346240430,-1184.33522948,0.00011,2]
[333679052,1722346242919,-2080.68,0.00011,2]
[333679053,1722346242931,-955.62140526,0.00011,2]
[333679054,1722346242972,-89968.78121297,0.00011,2]
[333679055,1722346243206,-614.29174979,0.00011,2]
[333679056,1722346243218,-711.82512358,0.00011,2]
[333679057,1722346243248,-1596.93370988,0.00011,2]
[333679058,1722346243259,-2724.565046,0.00011,2]
[333679070,1722346245874,-859.59283247,0.00011,2]
[333679071,1722346245993,-335.451,0.00011,2]
[333679072,1722346246055,-1902.3193438,0.00011,2]
[333679073,1722346395265,513.871311,0.00027,120]
[333679074,1722346399693,500.0,0.00027,120]
[333679111,1722347432079,-553.66,8.219e-05,2]
[333679112,1722347432088,-3088.81851108,9.82e-05,2]
[333679114,1722347432100,-919.32000046,9.82e-05,2]
[333679116,1722347432112,-630.85,9.82e-05,2]
[333679123,1722347432176,-4228.0863352,9.82e-05,2]
[333679126,1722347432188,-1085.42033485,9.82e-05,2]
[333679130,1722347432271,-2109.43741355,9.82e-05,2]
[333679131,1722347432367,-658.25,9.82e-05,2]
[333679132,1722347432381,-494.0133311,9.82e-05,2]
[333679133,1722347432392,-10665.80407376,9.82e-05,2]
[333679134,1722347432401,-966.65,9.823e-05,2]
[333679135,1722347432411,-200.0,9.85e-05,2]
[333679136,1722347432420,-250.0,9.853e-05,2]
[333679137,1722347432429,-200.0,9.907e-05,2]
[333679138,1722347432438,-5685.34,9.932e-05,2]
[333679139,1722347432447,-1250.0,0.0001,2]
[333679140,1722347432457,-1000.0,0.00010105,2]
[333679141,1722347432466,-150.0,0.00010274,2]
[333679142,1722347432476,-357.07,0.00010274,2]
[333679143,1722347432485,-891.76,0.00010341,2]
[333679144,1722347432494,-420.42,0.00010341,2]
[333679145,1722347432503,-420.42,0.00010341,2]
[333679147,1722347432512,-420.42,0.00010341,2]
[333679148,1722347432521,-419.82,0.00010341,2]
[333679149,1722347432530,-299.99,0.00010417,2]
[333679150,1722347432539,-179.99,0.00010417,2]
[333679151,1722347432548,-553.66,0.00010472,2]
[333679152,1722347432558,-150.99,0.00010478,2]
[333679153,1722347432567,-150.0,0.00010752,2]
[333679154,1722347432576,-171.4,0.00010758,2]
[333679155,1722347432585,-150.0,0.00010799,2]
[333679156,1722347432594,-1210.9781,0.000108,2]
[333679157,1722347432603,-3371.2748,0.000108,2]
[333679158,1722347432612,-541.6496,0.000108,2]
[333679159,1722347432622,-8185.6057,0.000108,2]
[333679160,1722347432632,-1800.9031,0.000108,2]
[333679161,1722347432642,-499.99,0.000108,2]
[333679162,1722347432652,-4686.42,0.000108,2]
[333679163,1722347432661,-75765.3967,0.0001089,2]
[333679164,1722347432670,-1000.0,0.0001089,2]
[333679165,1722347432680,-167.5151402,0.00010899,2]
[333679166,1722347432689,-500.0,0.000109,2]
[333679167,1722347432698,-2026.2416,0.000109,2]
[333679168,1722347432707,-100000.0,0.000109,2]
[333679169,1722347432716,-13256.8447,0.000109,2]
[333679170,1722347432726,-5243.8644,0.000109,2]
[333679171,1722347432735,-144251.8373,0.000109,2]
[333679172,1722347432746,-208.67051964,0.000109,2]
[333679173,1722347432761,-167.5151402,0.000109,2]
[333679174,1722347432771,-381.32851623,0.000109,2]
[333679175,1722347432780,-381.32851623,0.000109,2]
[333679176,1722347432789,-381.32851623,0.000109,2]
[333679177,1722347432799,-381.32851623,0.000109,2]
[333679178,1722347432808,-381.32851623,0.000109,2]
[333679179,1722347432817,-381.32851623,0.000109,2]
[333679180,1722347432826,-381.32851623,0.000109,2]
[333679181,1722347432836,-1863.2721238,0.000109,2]
[333679182,1722347432845,-521.0788278,0.000109,2]
[333679183,1722347432855,-164.77839754,0.000109,2]
[333679184,1722347432864,-200.0,0.00010959,2]
[333679185,1722347432875,-250.0,0.00010959,2]
[333679186,1722347432884,-155.0,0.0001099,2]
[333679187,1722347432894,-179.02196653,0.00010997,2]
[333679188,1722347432903,-716.08786612,0.00010997,2]
[333679189,1722347432913,-5039.5257271,0.00010998,2]
[333679190,1722347432923,-871.9036724,0.00010998,2]
[333679191,1722347432933,-1505.5572551,0.00010998,2]
[333679192,1722347432942,-2000.0,0.00010999,2]
[333679193,1722347432951,-441.57062637,0.00010999,2]
[333679194,1722347432961,-33011.0,0.00011,2]
[333679195,1722347432970,-27264.07882751,0.00011,2]
[333679196,1722347432981,-219410.03086151,0.00011,2]
[333679197,1722347432994,-301.2900896,0.00011,2]
[333679198,1722347433006,-70881.12243274,0.00011,2]
[333679199,1722347433017,-10283.09270712,0.00011,2]
[333679200,1722347433029,-460.43123519,0.00011,2]
[333679201,1722347433040,-943.09082566,0.00011,2]
[333679202,1722347433052,-803.551896,0.00011,2]
[333679203,1722347433063,-7823.73689433,0.00011,2]
[333679217,1722347438112,-12827.0,0.00011,2]
[333679218,1722347438124,-6343.80348218,0.00011,2]
[333679219,1722347438139,-670.86660603,0.00011,2]
[333679220,1722347438152,-355.55693075,0.00011,2]
[333679221,1722347438237,-609.04084905,0.00011,2]
[333679222,1722347438249,-2084.0327375,0.00011,2]
[333679223,1722347438260,-2158.98320904,0.00011,2]
[333679224,1722347438273,-2183.16426548,0.00011,2]
[333679225,1722347438283,-281.55,0.00011,2]
[333679226,1722347438295,-1009.91881608,0.00011,2]
[333679227,1722347438307,-4552.91952645,0.00011,2]
[333679228,1722347438406,-18716.99087636,0.00011,2]
[333679229,1722347438418,-3253.18471337,0.00011,2]
[333679241,1722347438699,-1251.34130064,0.00011,2]
[333679243,1722347438711,-729.82228752,0.00011,2]
[333679245,1722347438722,-289.4002629,0.00011,2]
[333679380,1722347440219,-2141.25728077,0.00011,2]
[333679383,1722347440230,-2191.28868631,0.00011,2]
[333679385,1722347440241,-102054.7108881,0.00011,2]
[333679387,1722347440251,-939.63137312,0.00011,2]
[333679389,1722347440262,-441.48538942,0.00011,2]
[333679391,1722347440273,-505.53116172,0.00011,2]
[333679394,1722347440287,-902.16144431,0.00011,2]
[333679402,1722347440369,-630.25841339,0.00011,2]
[333679405,1722347440380,-2476.92546041,0.00011,2]
[333679407,1722347440395,-2954.1894928,0.00011,2]
[333679416,1722347440474,-9136.80152,0.00011,2]
[333679428,1722347440575,-502.36071293,0.00011,2]
[333679430,1722347440586,-662.70634916,0.00011,2]
[333679695,1722347443291,-238.17491204,0.000109,2]
[333679697,1722347443301,-3847.23565747,0.00011,2]
[333679699,1722347443312,-1641.75281423,0.00011,2]
[333679702,1722347443323,-475.67259041,0.00011,2]
[333679704,1722347443334,-8264.97603201,0.00011,2]
[333679718,1722347443460,-229792.25042027,0.00011,2]
[333679720,1722347443470,-147710.71797806,0.00011,2]
[333679729,1722347443554,-1042.11629526,0.00011,2]
[333679987,1722347446196,-2073.29355406,0.00011,2]
[333679990,1722347446208,-743.13090206,0.00011,2]
[333679992,1722347446219,-7518.8361788,0.00011,2]
[333679994,1722347446231,-624.09688597,0.00011,2]
[333680006,1722347446339,-1765.61032293,0.00011,2]
[333682568,1722347516836,1010.6641477,0.00025,60]
[333682570,1722347598848,500.0,0.00027,120]
[333682571,1722347928111,-525.17,8.341e-05,2]
[333682572,1722347928138,-722.338587,9.906e-05,2]
[333682573,1722347928165,-250.0,9.956e-05,2]
[333682574,1722347928193,-587.96619736,9.956e-05,2]
[333682575,1722347928220,-500.0,9.961e-05,2]
[333682576,1722347928244,-1509.56,9.961e-05,2]
[333682577,1722347928272,-50000.0,9.961e-05,2]
[333682578,1722347949265,329.81828907,0.00027,120]
[333682611,1722348248933,565.81,0.00027,120]
[333682654,1722348633529,-525.17,8.219e-05,2]
[333682656,1722348633539,-587.96619736,9.477e-05,2]
[333682657,1722348633549,-722.338587,9.477e-05,2]
[333682658,1722348633559,-373.81,9.494e-05,2]
[333682659,1722348633781,-3202.27681876,9.525e-05,2]
[333682660,1722348633804,-1484.87318124,9.525e-05,2]
[333682661,1722348633813,-150.0,9.651e-05,2]
[333682662,1722348633823,-500.0,9.652e-05,2]
[333682663,1722348633833,-2853.09507839,9.652e-05,2]
[333682664,1722348633846,-418.9295176,9.652e-05,2]
[333682665,1722348633857,-1312.15,9.652e-05,2]
[333682666,1722348633869,-1854.34095672,9.652e-05,2]
[333682667,1722348633885,-5304.33933746,9.652e-05,2]
[333682668,1722348633897,-1740.0,9.652e-05,2]
[333682669,1722348633909,-36517.14510983,9.652e-05,2]
[333682671,1722348633919,-1000.0,9.702e-05,2]
[333682673,1722348633929,-1509.56,9.712e-05,2]
[333682675,1722348633938,-250.0,9.763e-05,2]
[333682677,1722348633948,-300.0,9.799e-05,2]
[333682679,1722348633958,-1298.77,9.8e-05,2]
[333682681,1722348633967,-1280.93,9.8e-05,2]
[333682683,1722348633977,-8208.12,9.8e-05,2]
[333682685,1722348633986,-399.57,9.874e-05,2]
[333682687,1722348633996,-18562.71,9.874e-05,2]
[333682689,1722348634006,-200.0,9.979e-05,2]
[333682690,1722348634015,-1250.0,0.0001,2]
[333682692,1722348634025,-171.4,0.00010383,2]
[333682693,1722348634035,-834.15,0.00010441,2]
[333682694,1722348634044,-834.15,0.00010441,2]
[333682695,1722348634054,-834.15,0.00010441,2]
[333682696,1722348634063,-834.15,0.00010441,2]
[333682697,1722348634073,-834.15,0.00010441,2]
[333682698,1722348634082,-834.15,0.00010441,2]
[333682699,1722348634093,-834.15,0.00010441,2]
[333682700,1722348634103,-830.63,0.00010441,2]
[333682701,1722348634113,-525.17,0.00010473,2]
[333682702,1722348634123,-150.99,0.00010517,2]
[333682703,1722348634134,-422.66,0.00010541,2]
[333682704,1722348634144,-255.0,0.00010616,2]
[333682705,1722348634154,-420.0,0.00010779,2]
[333682706,1722348634163,-692.6,0.00010781,2]
[333682707,1722348634174,-376.9859,0.000108,2]
[333682708,1722348634183,-100000.0,0.000108,2]
[333682709,1722348634193,-282.7298,0.000108,2]
[333682710,1722348634202,-4471.6253,0.000108,2]
[333682711,1722348634213,-825.37644801,0.00010868,2]
[333682712,1722348634223,-825.37644801,0.00010884,2]
[333682713,1722348634232,-825.37644801,0.00010886,2]
[333682714,1722348634243,-14413.0,0.0001089,2]
[333682715,1722348634252,-86927.3058,0.000109,2]
[333682716,1722348634262,-101529.0577,0.000109,2]
[333682717,1722348634272,-504.20103813,0.000109,2]
[333682718,1722348634281,-504.20103813,0.000109,2]
[333682719,1722348634290,-504.20103813,0.000109,2]
[333682720,1722348634300,-504.20103813,0.000109,2]
[333682721,1722348634310,-504.20103813,0.000109,2]
[333682722,1722348634319,-504.20103813,0.000109,2]
[333682723,1722348634329,-504.20103813,0.000109,2]
[333682724,1722348634339,-504.20103813,0.000109,2]
[333682725,1722348634350,-504.20103813,0.000109,2]
[333682726,1722348634359,-1000.0,0.00010915,2]
[333682727,1722348634369,-200.0,0.00010959,2]
[333682728,1722348634378,-250.0,0.00010959,2]
[333682729,1722348634388,-45873.403704,0.00010998,2]
[333682730,1722348634397,-4686.4946175,0.00010998,2]
[333682731,1722348634406,-1516.9098569,0.00010998,2]
[333682732,1722348634416,-4030.3996536,0.00010998,2]
[333682733,1722348634425,-1268.77826272,0.00010999,3]
[333682734,1722348634434,-1268.77826271,0.00010999,3]
[333682735,1722348634443,-13309.24064882,0.00011,2]
[333682736,1722348638435,-3128.1510318,9.486e-05,2]
[333682737,1722348638544,-161.1389682,9.486e-05,2]
[333682738,1722348638554,-66238.8610318,0.00011,2]
[333682744,1722348643373,-10963.39735037,0.00011,2]
[333682746,1722348643385,-666.41,0.00011,2]
[333682749,1722348643402,-711.66079676,0.00011,2]
[333682761,1722348643509,-45835.2100006,0.00011,2]
[333682763,1722348643520,-339.955,0.00011,2]
[333682764,1722348643531,-1507.29,0.00011,2]
[333682765,1722348643613,-728.22246321,0.00011,2]
[333682766,1722348643624,-1909.90824921,0.00011,2]
[333682767,1722348643635,-3400.0,0.00011,2]
[333682768,1722348643719,-13540.8,0.00011,2]
[333682769,1722348643748,-3011.60439949,0.00011,2]
[333682770,1722348643759,-10534.6647,0.00011,2]
[333682797,1722348646419,-4404.63103717,0.00011,2]
[333682799,1722348646430,-400.71430661,0.00011,2]
[333682801,1722348646442,-587.96619736,0.00011,2]
[333682802,1722348646461,-53239.95115109,0.00011,2]
[333682803,1722348646493,-858.37797972,0.00011,2]
[333682804,1722348646523,-973.854934,0.00011,2]
[333682805,1722348646637,-4134.89502,0.00011,2]
[333682809,1722348799273,500.0,0.00027,120]
[333682813,1722349407985,2000.0,0.00027,120]
[333682816,1722349616172,-504.82,8.727e-05,2]
[333682817,1722349616197,-662.21155,9e-05,2]
[333682818,1722349616220,-150.0,9.888e-05,2]
[333682819,1722349616242,-500.0,0.0001,2]
[333682820,1722349616264,-500.0,0.0001,2]
[333682821,1722349616286,-500.0,0.0001,2]
[333682822,1722349616307,-500.0,0.0001,2]
[333682823,1722349616329,-500.0,0.0001,2]
[333682824,1722349616351,-500.0,0.0001,2]
[333682825,1722349616373,-500.0,0.0001,2]
[333682826,1722349616395,-500.0,0.0001,2]
[333682827,1722349616417,-415.19,0.0001,2]
[333682828,1722349616442,-50000.0,0.0001,2]
[333682829,1722349616463,-300.0,0.00010029,2]
[333682830,1722349616486,-21361.34,0.0001003,2]
[333682831,1722349616509,-660.29,0.00010044,2]
[333682832,1722349616531,-600.0,0.00010415,2]
[333682833,1722349616554,-400.0,0.00010675,2]
[333682834,1722349616575,-641.0,0.00010781,2]
[333682835,1722349616597,-2169.2262,0.000109,2]
[333682836,1722349616619,-5546.21141949,0.000109,2]
[333682837,1722349616640,-493.19380459,0.000109,2]
[333682838,1722349616661,-200.0,0.00010959,2]
[333682839,1722349616685,-250.0,0.00010959,2]
[333682840,1722349616707,-153.38,0.0001099,2]
[333682841,1722349616730,-153.38,0.0001099,2]
[333682842,1722349616752,-153.38,0.0001099,2]
[333682843,1722349616773,-153.38,0.0001099,2]
[333682844,1722349616795,-153.38,0.0001099,2]